[Event "Croatian 1A League 2022"]
[Site "Porec"]
[Date "2022.10.01"]
[Round "8.3"]
[White "Balogh, Csaba"]
[Black "Christiansen, Johan-Sebastian"]
[Result "1/2-1/2"]
[ECO "C45"]
[WhiteElo "2583"]
[BlackElo "2583"]
[Annotator "TA"]
[PlyCount "47"]
[EventDate "2022.09.24"]
[EventType "team-tourn"]
[EventCountry "CRO"]
[SourceTitle "playchess.com"]
[Source "ChessBase"]
[SourceQuality "1"]
[TimeControl "40/5400+30:1800+30"]

{[%evp 17,47,10,0,0,18,8,26,28,25,18,40,14,48,44,39,0,0,0,0,0,21,9,41,7,94,88,130,0,0,0,124,0]} 1. e4 {[%emt 0:00:03]} e5 {[%emt 0:03:26]} 2. Nf3 {[%emt 0:00:36]} Nc6 {[%emt 0:00:15]} 3. d4 {[%emt 0:00:38]} exd4 {[%emt 0:00:05]} 4. Nxd4 {[%emt 0:00:05]} Nf6 {[%emt 0:00:28]} 5. Nxc6 {[%emt 0:00:24]} bxc6 {[%emt 0:00:04][%cal Bb7c6,Bc6d5][%mdl 32]} 6. Bd3 {[%emt 0:00:33]} d5 {[%emt 0:06:04]} 7. exd5 {[%emt 0:00:46]} cxd5 {[%emt 0:00:24]} 8. O-O {[%emt 0:00:19]} Be7 {[%emt 0:00:35]} 9. c4 {[%emt 0:00:19]} O-O $1 {[%emt 0:02:43] 9...0-0 is better than 9...d4.} 10. Nc3 {[%emt 0:00:44] C45: Scotch Game.} Bb7 {[%emt 0:01:10]} 11. Qb3 {[%emt 0:01:26]} Rb8 {[%emt 0:06:01] Threatens to win with ...d4.} 12. cxd5 {[%emt 0:01:17] White has an edge.} Bxd5 {[%emt 0:34:28]} 13. Qc2 {[%emt 0:00:45]} Ba8 {[%emt 0:00:15]} 14. Be3 {[%emt 0:02:54]} Bd6 {[%emt 0:06:39]} (14... Qd6 $5 {[%cal Rf6g4]}) 15. f3 {[%emt 0:08:53] [#] Inhibits Ng4.} c5 $146 {[%emt 0:05:34][%cal Bc7c5,Bc5c4][%mdl 32]} ({Predecessor:} 15... a5 16. Rad1 h6 17. Rfe1 Re8 18. Bc4 Nd7 19. Qf5 Ne5 20. Bb3 Qd7 21. Qxd7 Nxd7 {0-1 (46) Gazik,V (2544)-Mamedyarov,S (2759) Chennai 2022}) 16. Rfe1 {[%emt 0:42:08]} c4 {[%emt 0:04:07]} 17. Bf1 {[%emt 0:04:55]} Qc7 {[%emt 0:00:14]} 18. h3 {[%emt 0:00:17]} Be5 {[%emt 0:10:21]} 19. Rad1 {[%emt 0:03:20]} Rfc8 {[%emt 0:02:27]} 20. Bd4 {[%emt 0:02:57]} Bg3 {[%emt 0:04:14]} (20... Bxd4+ $11 {keeps the balance.} 21. Rxd4 Bxf3) 21. Bf2 $16 {[%emt 0:01:07]} Be5 {[%emt 0:01:17] [#]} 22. Bd4 {[%emt 0:02:25] White is more active.} ({Better is} 22. Bxc4 $1 $16 {[%mdl 512]} Bc6 (22... Re8 23. b3) 23. b3) 22... Bg3 $11 {[%emt 0:03:03]} 23. Bf2 {[%emt 0:00:10]} (23. Re3 $11) 23... Be5 $1 $16 {[%emt 0:19:48] [#]} 24. Bd4 {[%emt 0:01:07] Weighted Error Value: White=0.16 (very precise) /Black=0.20 (precise)} (24. Bxc4 $1 $16 {[%mdl 512]} Bc6 (24... h6 25. b3) 25. Re2) 1/2-1/2

[Event "Croatian 1A League 2022"]
[Site "Porec"]
[Date "2022.10.01"]
[Round "8.4"]
[White "Martinovic, Sasa"]
[Black "Kuljasevic, Davorin"]
[Result "1/2-1/2"]
[ECO "E25"]
[WhiteElo "2546"]
[BlackElo "2560"]
[Annotator "TA"]
[PlyCount "62"]
[EventDate "2022.09.24"]
[EventType "team-tourn"]
[EventCountry "CRO"]
[SourceTitle "playchess.com"]
[Source "ChessBase"]
[SourceQuality "1"]
[TimeControl "40/5400+30:1800+30"]

{[%evp 21,62,16,16,27,24,28,24,16,25,24,22,10,23,23,23,16,10,16,14,0,0,0,0,0,0,2,0,0,1,2,8,0,0,0,0,0,0,0,0,0,0,0,0]} 1. d4 {[%emt 0:00:02]} Nf6 {[%emt 0:00:10]} 2. c4 {[%emt 0:00:07]} e6 {[%emt 0:00:09]} 3. Nc3 {[%emt 0:00:07]} Bb4 {[%emt 0:00:32]} 4. f3 {[%emt 0:00:11]} d5 {[%emt 0:03:05]} 5. a3 {[%emt 0:00:25]} Bxc3+ {[%emt 0:00:56]} 6. bxc3 {[%emt 0:00:04]} c5 {[%emt 0:00:25]} 7. cxd5 {[%emt 0:00:35]} Nxd5 {[%emt 0:00:58]} 8. dxc5 {[%emt 0:00:25]} Qa5 {[%emt 0:00:52]} 9. e4 {[%emt 0:00:49]} Ne7 {[%emt 0:02:55]} 10. Be3 {[%emt 0:00:21]} O-O {[%emt 0:00:28]} 11. Qb3 {[%emt 0:00:49]} Qc7 {[%emt 0:04:10]} 12. Bb5 {[%emt 0:00:31] E25: Nimzo-Indian: Sämisch: 5...c5 6 f3 d5 7 cxd5.} Nec6 {[%emt 0:02:01]} 13. Ne2 {[%emt 0:00:11]} Na5 {[%emt 0:02:49]} 14. Qb4 {[%emt 0:01:53] White has an edge.} e5 {[%emt 0:03:20] Inhibits Bf4.} 15. Nd4 {[%emt 0:06:21][%cal Oe1g1]} exd4 {[%emt 0:07:07]} 16. cxd4 {[%emt 0:00:08]} b6 {[%emt 0:00:29]} 17. Rc1 {[%emt 0:01:08]} Qd8 {[%emt 0:12:57]} 18. O-O {[%emt 0:23:13]} bxc5 {[%emt 0:10:26] The position is equal.} 19. Rxc5 {[%emt 0:00:35] And now Rfc1 would win.} Na6 {[%emt 0:01:02] [#]} 20. Rxc8 $146 {[%emt 0:05:26]} ({Predecessor:} 20. Bxa6 Bxa6 21. Rfc1 Nc4 22. R1xc4 Rb8 23. Qc3 Bxc4 24. Rxc4 Rb1+ 25. Bc1 h6 26. h3 Qd6 27. d5 Rfb8 28. Kf2 R1b6 29. Rc8+ {½-½ (29) Jørgensen,B (2346)-Geana,D (2302) ICCF email 2019}) 20... Nxb4 {[%emt 0:00:54] Pair of Knights!} 21. Rxd8 {[%emt 0:00:04]} Rfxd8 {[%emt 0:00:25]} 22. axb4 {[%emt 0:00:08]} Rab8 {[%emt 0:03:24]} 23. Be2 {[%emt 0:02:09]} Rxb4 {[%emt 0:02:04]} 24. d5 {[%emt 0:00:29]} Nb7 {[%emt 0:12:54]} 25. Bxa7 {[%emt 0:01:52]} f5 {[%emt 0:04:11]} 26. Bd3 {[%emt 0:04:55]} Ra8 $1 {[%emt 0:01:37] [#] White must now prevent ...fxe4.} 27. Bf2 {[%emt 0:01:02]} Ra3 $1 {[%emt 0:00:45]} 28. Bb1 {[%emt 0:04:55]} Ra1 {[%emt 0:01:39]} 29. Bd3 {[%emt 0:00:25]} Ra3 {[%emt 0:00:56]} 30. Bb1 {[%emt 0:00:52]} Ra1 {[%emt 0:00:11]} 31. Bd3 {[%emt 0:00:08]} Ra3 {[%emt 0:00:04] A balanced but interesting game.  Weighted Error Value: White=0.02 (flawless) /Black=0.01 (flawless)} 1/2-1/2

[Event "Croatian 1A League 2022"]
[Site "Porec"]
[Date "2022.10.01"]
[Round "8.5"]
[White "Jovanic, Ognjen"]
[Black "Rogic, Davor"]
[Result "0-1"]
[ECO "D52"]
[WhiteElo "2507"]
[BlackElo "2458"]
[Annotator "TA"]
[PlyCount "146"]
[EventDate "2022.09.24"]
[EventType "team-tourn"]
[EventCountry "CRO"]
[SourceTitle "playchess.com"]
[Source "ChessBase"]
[SourceQuality "1"]
[TimeControl "40/5400+30:1800+30"]

{[%evp 60,146,-70,-65,0,-62,-59,-107,-112,-115,-108,-110,-108,-112,-114,-167,-126,-196,-196,-268,-186,-342,-342,-342,-342,-341,-326,-309,-294,-309,-309,-1281,-1334,-1226,-1242,-1127,-1064,-1463,-1352,-1379,-1227,-1113,-374,-2080,-2022,-29963,-29960,-29958,-29961,-29969,-12841,-29972,-29971,-29972,-1187,-2029,0,-29972,-1207,-29972,-1097,-29974,-777,-29973,-1039,-29974,-29975,-6095,-2643,-29978,-29979,-29979,-29980,-29980,-29980,-29979,-29980,-29981,-29982,-29982,-29983,-29983,-29984,-29984,-29985,-29986,-29987,-29987,-29988]} 1. d4 {[%emt 0:00:19]} d5 {[%emt 0:00:24]} 2. c4 {[%emt 0:00:09]} e6 {[%emt 0:00:21]} 3. Nc3 {[%emt 0:00:54]} Nf6 {[%emt 0:00:21]} 4. Bg5 {[%emt 0:01:08]} c6 {[%emt 0:00:51]} 5. e3 {[%emt 0:00:55]} Nbd7 {[%emt 0:02:29]} 6. Nf3 {[%emt 0:00:59]} Qa5 {[%emt 0:01:43]} 7. Nd2 {[%emt 0:04:14]} dxc4 {[%emt 0:00:33]} 8. Bxf6 {[%emt 0:01:01]} Nxf6 {[%emt 0:00:07]} 9. Nxc4 {[%emt 0:00:49]} Qc7 {[%emt 0:00:21]} 10. Rc1 {[%emt 0:02:45]} Bd6 {[%emt 0:01:45]} 11. f4 {[%emt 0:04:22]} Be7 {[%emt 0:00:41]} 12. Bd3 {[%emt 0:04:32]} O-O {[%emt 0:06:07]} 13. O-O {[%emt 0:04:38]} Rd8 {[%emt 0:02:27]} 14. Qe2 {[%emt 0:06:11]} a6 {[%emt 0:12:23]} 15. Ne5 {[%emt 0:04:48]} Bd7 {[%emt 0:01:29]} 16. Na4 {[%emt 0:08:38]} Be8 {[%emt 0:03:07]} 17. Nc5 {[%emt 0:02:09]} a5 {[%emt 0:02:02]} 18. a3 {[%emt 0:05:26]} Bf8 {[%emt 0:20:33]} 19. Qf3 {[%emt 0:04:56]} g6 {[%emt 0:05:15]} 20. Bb1 {[%emt 0:03:26]} Rac8 {[%emt 0:01:27]} 21. Ncd3 {[%emt 0:09:30]} b6 {[%emt 0:05:18]} 22. Rfe1 {[%emt 0:01:15]} Nd5 {[%emt 0:02:26]} 23. h4 {[%emt 0:04:23]} Qe7 {[%emt 0:02:53]} 24. h5 {[%emt 0:02:04]} c5 {[%emt 0:02:21]} 25. hxg6 {[%emt 0:00:41]} hxg6 {[%emt 0:00:04]} 26. dxc5 {[%emt 0:02:20]} bxc5 {[%emt 0:00:37]} 27. Nc4 {[%emt 0:01:10]} Qa7 {[%emt 0:01:15]} 28. Nde5 {[%emt 0:00:39]} Nb6 {[%emt 0:01:50]} 29. Ba2 {[%emt 0:00:54]} Bg7 {[%emt 0:01:47]} 30. Rcd1 {[%emt 0:06:02]} Nxc4 {[%emt 0:01:20]} 31. Bxc4 {[%emt 0:03:00]} Qb8 {[%emt 0:05:57]} (31... Qc7 $15) 32. Rxd8 {[%emt 0:04:24]} (32. Nxg6 $11 fxg6 33. Bxe6+ Bf7 34. Bxc8 Qxc8 35. Rxd8+ Qxd8 36. Rd1) 32... Rxd8 $15 {[%emt 0:00:05]} 33. Nd3 {[%emt 0:00:56]} (33. Qe4 $1 $15 {is more appropriate.}) 33... Bb5 $17 {[%emt 0:04:38]} (33... Bxb2 $2 34. Rb1 $18) 34. Qe4 {[%emt 0:01:06] [#]} Qb6 $1 {[%emt 0:03:26]} 35. Ne5 {[%emt 0:04:37]} Bxe5 {[%emt 0:01:01]} 36. Bxb5 {[%emt 0:00:06]} Bxf4 {[%emt 0:04:23]} 37. a4 {[%emt 0:02:31]} (37. Qxf4 $17 {was called for.} Qxb5 38. Rf1) 37... Bc7 {[%emt 0:02:41]} 38. Qf3 {[%emt 0:00:57]} (38. Rf1 $17) 38... Qd6 $19 {[%emt 0:00:19]} 39. Kf2 {[%emt 0:00:18]} (39. g3 $142) 39... Qh2 {[%emt 0:01:39]} 40. Be2 $2 {[%emt 0:00:00]} (40. Ke2) 40... Qh4+ $19 {[%emt 0:00:00]} ({Don't blunder} 40... Rd2 $2 41. Qh3 Qe5 42. Rh1 $19) 41. g3 {[%emt 0:01:48]} Qh2+ {[%emt 0:03:37]} ({Avoid the trap} 41... Qxa4 $2 42. Rd1) 42. Kf1 {[%emt 0:00:19]} Bxg3 {[%emt 0:01:02]} 43. Rd1 {[%emt 0:00:45]} Qh3+ {[%emt 0:03:55]} 44. Kg1 {[%emt 0:01:24]} Bh2+ {[%emt 0:02:36]} 45. Kh1 $2 {[%emt 0:00:12]} (45. Kf2 Qh4+ 46. Kg2 Rxd1 47. Bxd1) 45... Rxd1+ $19 {[%emt 0:00:15]} 46. Bxd1 {[%emt 0:00:11]} Qxf3+ {[%emt 0:00:10]} 47. Bxf3 {[%emt 0:00:08]} Bd6 {[%emt 0:00:36]} 48. b3 {[%emt 0:00:09]} f5 {[%emt 0:00:27]} 49. Be2 {[%emt 0:00:09]} Kf7 {[%emt 0:00:24]} 50. Kg1 {[%emt 0:00:03]} Kf6 $2 {[%emt 0:00:41]} (50... c4 51. Bxc4 g5) 51. Ba6 $2 {[%emt 0:00:23]} (51. Kf2) 51... e5 $19 {[%emt 0:02:17]} 52. e4 {[%emt 0:00:18] [#]} Kg5 $1 {[%emt 0:00:25]} 53. Kf2 {[%emt 0:01:41]} Kf4 {[%emt 0:00:14]} 54. Bb7 {[%emt 0:00:27]} Be7 {[%emt 0:00:38]} (54... fxe4 $142 55. Bd5 Be7 56. Bg8 g5 57. Be6 g4 58. Ke2 Bh4 59. Bd7 g3 60. Bh3 Bg5 61. Ke1 e3 62. Bg2 e4 63. Ke2 Kf5 64. Bh3+ Ke5 65. Bf1 Kd4 66. Bg2 Kc3 67. Bh3 Kxb3 68. Bg2 c4 69. Bxe4 c3 70. Kf3 c2 71. Bxc2+ Kxc2 72. Kg2 e2 73. Kxg3 e1=Q+ 74. Kg4 Qe5 75. Kf3 Kd3 76. Kg2 Be3 77. Kf3 Qf4+ 78. Kg2 Qh4 79. Kf3 Qh3#) 55. Bd5 {[%emt 0:00:53]} Bh4+ {[%emt 0:01:03]} 56. Ke2 {[%emt 0:00:40]} Bg3 {[%emt 0:01:42]} (56... fxe4 $142 57. Bc4 g5 58. Bb5 g4 59. Bd7 g3 60. Bh3 e3 61. Bg2 Bg5 62. Bh1 e4 63. Bg2 Ke5 64. Bf1 Kd4 65. Bg2 Kc3 66. Bxe4 Kxb3 67. Bh1 c4 68. Bd5 Kb4 69. Kd1 c3 70. Bf3 e2+ 71. Kxe2 c2 72. Kf1 c1=Q+ 73. Kg2 Qf4 74. Bd5 Qf2+ 75. Kh3 g2 76. Kg4 g1=Q+ 77. Kh5 Qgh2+ 78. Kxg5 Qhh4+ 79. Kg6 Qff6#) 57. Bc6 {[%emt 0:00:24]} Bh4 {[%emt 0:06:44]} (57... fxe4 $19 58. Bd5 g5) 58. Bd5 $1 {[%emt 0:00:13]} Bd8 {[%emt 0:02:20]} (58... fxe4 $142 59. Bc4 g5 60. Bb5 g4 61. Bd7 e3 62. Be6 g3 63. Bh3 e4 64. Bf1 Bg5 65. Bg2 Kf5 66. Kf1 Ke5 67. Ke2 Kf5 68. Bh1 Ke5 69. Ke1 Kd4 70. Ke2 Kc3 71. Bxe4 Kxb3 72. Kf1 c4 73. Bg6 c3 74. Bf7+ Kb2 75. Bg6 c2 76. Bxc2 Kxc2 77. Kg2 e2 78. Kxg3 e1=Q+ 79. Kg4 Qe5 80. Kf3 Be3 81. Kg2 Kd3 82. Kh1 Qe4+ 83. Kh2 Qg4 84. Kh1 Qh3#) 59. Bc6 {[%emt 0:00:09]} Be7 {[%emt 0:00:39]} (59... fxe4 $142 60. Bb7 Bh4 61. Bd5 Bf6 62. Be6 g5 63. Bc8 g4 64. Be6 Bg5 65. Bd7 e3 66. Bb5 e4 67. Bd7 g3 68. Bh3 Ke5 69. Bg2 Kd4 70. Bh1 Kc3 71. Bxe4 Kxb3 72. Kf1 Kxa4 73. Bg6 Kb4 74. Bd3 a4 75. Bb1 a3 76. Ba2 c4 77. Bb1 g2+ 78. Kxg2 c3 79. Kg3 a2 80. Bxa2 c2 81. Bf7 e2 82. Kg4 c1=Q 83. Bd5 Qf4+ 84. Kh5 e1=Q 85. Kg6 Qf6+ 86. Kh7 Qh6+ 87. Kg8 Qe8#) 60. Bd5 {[%emt 0:00:04]} Bf8 {[%emt 0:00:03]} (60... fxe4 $142 61. Bc4 g5 62. Ke1 g4 63. Be6 Bg5 64. Ke2 g3 65. Bh3 e3 66. Kf1 Ke4 67. Ke2 Kf4 68. Bf1 e4 69. Ke1 Ke5 70. Ke2 Kd4 71. Bg2 Kc3 72. Bxe4 Kxb3 73. Kf3 c4 74. Bd5 Kb4 75. Be4 Kxa4 76. Kg4 e2 77. Kxg5 e1=Q 78. Kf4 c3 79. Kf3 Kb4 80. Bf5 Qf2+ 81. Kg4 g2 82. Kg5 g1=Q+ 83. Kf6 Qd4+ 84. Kf7 Qgg7+ 85. Ke8 Qc5 86. Bh3 Qcf8#) 61. Bc6 {[%emt 0:00:29]} Bh6 {[%emt 0:00:08]} (61... fxe4 $142 62. Bb5 g5 63. Bc4 Be7 64. Bg8 g4 65. Be6 Bh4 66. Kf1 e3 67. Ke2 e4 68. Bc8 g3 69. Bh3 Bg5 70. Bf1 Ke5 71. Bg2 Kd5 72. Bh1 Kd4 73. Bg2 Kc3 74. Bxe4 Kxb3 75. Bh1 c4 76. Bd5 Kxa4 77. Kf3 c3 78. Be4 Kb4 79. Bg6 a4 80. Kxg3 a3 81. Bb1 Kb3 82. Be4 c2 83. Bxc2+ Kxc2 84. Kh2 a2 85. Kg3 a1=Q 86. Kg4 e2 87. Kh5 e1=Q 88. Kg6 Qf6+ 89. Kh7 Qf7+ 90. Kh8 Qh4#) 62. Bd5 {[%emt 0:00:09]} fxe4 {[%emt 0:00:25]} 63. Be6 {[%emt 0:00:08]} g5 {[%emt 0:00:50]} 64. Bh3 {[%emt 0:00:23]} g4 {[%emt 0:00:57]} 65. Bg2 {[%emt 0:00:02]} Bg5 {[%emt 0:00:37]} 66. Bh1 {[%emt 0:00:03]} e3 {[%emt 0:00:30]} 67. Bc6 {[%emt 0:07:33]} e4 {[%emt 0:00:50]} 68. Be8 {[%emt 0:01:19]} g3 {[%emt 0:01:23]} 69. Kf1 {[%emt 0:00:09]} Ke5 {[%emt 0:00:12]} 70. Bb5 {[%emt 0:01:04]} Kd4 {[%emt 0:00:05]} 71. Kg2 {[%emt 0:00:06]} Bf4 {[%emt 0:01:17]} 72. Kf1 {[%emt 0:04:33]} Kc3 {[%emt 0:00:15]} 73. Bc4 {[%emt 0:00:11]} Kd2 {[%emt 0:00:12]} 0-1

[Event "Croatian 1A League 2022"]
[Site "Porec"]
[Date "2022.10.01"]
[Round "8.6"]
[White "Cvitan, Ognjen"]
[Black "Srbis, Jurica"]
[Result "1/2-1/2"]
[ECO "E12"]
[WhiteElo "2445"]
[BlackElo "2442"]
[Annotator "TA"]
[PlyCount "41"]
[EventDate "2022.09.24"]
[EventType "team-tourn"]
[EventCountry "CRO"]
[SourceTitle "playchess.com"]
[Source "ChessBase"]
[SourceQuality "1"]
[TimeControl "40/5400+30:1800+30"]

{[%evp 24,41,37,12,13,-19,0,-20,4,-28,-21,-33,-12,-38,-50,-37,-29,-56,0,0]} 1. d4 {[%emt 0:00:37]} Nf6 {[%emt 0:00:09]} 2. c4 {[%emt 0:00:43]} e6 {[%emt 0:00:08]} 3. Nf3 {[%emt 0:00:58]} b6 {[%emt 0:00:28]} 4. Nc3 {[%emt 0:02:38]} Bb7 {[%emt 0:00:57]} 5. a3 {[%emt 0:05:35]} d5 {[%emt 0:00:37]} 6. cxd5 {[%emt 0:03:25]} Nxd5 {[%emt 0:00:07]} 7. e3 {[%emt 0:01:05]} Be7 {[%emt 0:00:25]} 8. Bb5+ {[%emt 0:00:22]} c6 {[%emt 0:00:06]} 9. Bd3 {[%emt 0:00:19]} Nd7 {[%emt 0:01:29]} 10. e4 {[%emt 0:05:47]} Nxc3 {[%emt 0:00:30]} 11. bxc3 {[%emt 0:01:09]} c5 {[%emt 0:01:57]} 12. O-O {[%emt 0:02:26]} O-O {[%emt 0:02:48]} 13. Re1 {[%emt 0:09:21]} Rc8 {[%emt 0:05:08] [#] E12: Queen's Indian: Unusual White 4th moves, 4 a3, 4 Nc3 Bb7 5 a3 and 4 Nc3 Bb7 .} 14. e5 $146 {[%emt 0:08:11]} ({Predecessor:} 14. Qe2 Qc7 15. Bd2 e5 16. d5 c4 17. Bc2 Bd6 18. Be3 b5 19. Reb1 Qa5 20. Bd2 Nc5 21. a4 bxa4 22. Bxa4 Qc7 23. Qxc4 {½-½ (71) Miasik,A (1754)-Osipow,N (2117) Jastrzebia Gora 2015}) 14... Re8 {[%emt 0:03:51]} 15. a4 {[%emt 0:09:15]} Nf8 {[%emt 0:14:27]} 16. Be3 {[%emt 0:02:11]} (16. Bb5 $5 {[%cal Rb5e8]}) 16... cxd4 {[%emt 0:05:28]} 17. cxd4 {[%emt 0:01:05]} Ng6 {[%emt 0:03:43]} 18. Bb5 {[%emt 0:01:34]} Rf8 {[%emt 0:05:10]} 19. Qe2 {[%emt 0:02:04]} Qd5 {[%emt 0:01:57]} 20. Ba6 {[%emt 0:01:27]} Rc7 {[%emt 0:08:41]} (20... Bb4 $1 $15 21. Rec1 Ne7) 21. Bxb7 {[%emt 0:00:24] Weighted Error Value: White=0.23 (precise) /Black=0.17 (very precise)} 1/2-1/2

[Event "Croatian 1A League 2022"]
[Site "Porec"]
[Date "2022.10.01"]
[Round "8.7"]
[White "Shevchenko, Kirill"]
[Black "Motylev, Alexander"]
[Result "1/2-1/2"]
[ECO "E35"]
[WhiteElo "2645"]
[BlackElo "2635"]
[Annotator "TA"]
[PlyCount "73"]
[EventDate "2022.09.24"]
[EventType "team-tourn"]
[EventCountry "CRO"]
[SourceTitle "playchess.com"]
[Source "ChessBase"]
[SourceQuality "1"]
[TimeControl "40/5400+30:1800+30"]

{[%evp 17,73,21,29,16,42,4,1,0,0,0,0,0,6,4,19,10,27,14,28,22,22,17,10,19,8,17,17,34,29,18,12,10,10,10,10,10,10,10,10,10,10,17,18,10,10,0,0,0,0,0,0,0,0,0,0,0,0,0]} 1. d4 {[%emt 0:00:04]} Nf6 {[%emt 0:00:18]} 2. c4 {[%emt 0:00:09]} e6 {[%emt 0:00:10]} 3. Nc3 {[%emt 0:00:24]} Bb4 {[%emt 0:00:32]} 4. Qc2 {[%emt 0:00:51]} d5 {[%emt 0:01:20]} 5. cxd5 {[%emt 0:02:35]} exd5 {[%emt 0:00:36]} 6. Bg5 {[%emt 0:00:31][%cal Bc1g5,Bg5h4,Bh4g3][%mdl 32]} h6 {[%emt 0:01:15]} 7. Bh4 {[%emt 0:00:34]} c5 {[%emt 0:01:37]} 8. dxc5 {[%emt 0:02:25]} g5 {[%emt 0:02:00]} 9. Bg3 {[%emt 0:00:10]} Ne4 {[%emt 0:00:55] [#] Strongly threatening ...Qa5.} 10. e3 {[%emt 0:02:25] E35: Nimzo-Indian: Classical: 4...d5 5 cxd5 exd5.} Qa5 {[%emt 0:02:49][%cal Re4c3]} 11. Rc1 {[%emt 0:01:47] White wants to play Bd3.} Qxa2 {[%emt 0:04:17] 11...Nc6 injects fresh life into this line.} (11... Qxc5 12. Bd3 $14) 12. Bb5+ {[%emt 0:02:15]} Bd7 {[%emt 0:00:32]} 13. Bxd7+ {[%emt 0:00:37]} Nxd7 {[%emt 0:00:11]} 14. Nge2 {[%emt 0:00:20]} Nxc3 {[%emt 0:05:25]} (14... Nexc5 $2 15. O-O Qc4 16. Rfd1 $18) ({Resist} 14... Nxg3 15. hxg3 Qa6 16. O-O $16) 15. Nxc3 {[%emt 0:00:28]} Qc4 {[%emt 0:00:35]} (15... Nxc5 $2 16. O-O Qb3 17. Qf5 $18) 16. h4 {[%emt 0:07:32] [#]} O-O-O $146 {[%emt 0:13:16] [#] ...d4 is the strong threat.} (16... Qxc5 $2 17. hxg5 d4 18. exd4 (18. Rxh6 Rxh6 19. gxh6 dxc3 $11) 18... Qxg5 19. Qe2+ Be7 20. O-O $18) ({Predecessor:} 16... Nxc5 17. Rd1 g4 18. Rd4 Qa6 19. h5 Rc8 20. Qf5 Bxc3+ 21. bxc3 Qa1+ 22. Ke2 Qa2+ 23. Rd2 Qa6+ 24. Ke1 Qa1+ 25. Ke2 Qa6+ 26. Ke1 {½-½ (26) Gagunashvili,M (2560)-Zhukova,N (2459) Nakhchivan 2014}) 17. Kd1 {[%emt 0:12:11]} ({And not} 17. Qf5 d4 18. Qg4 Rhe8 19. hxg5 hxg5 $17) 17... Rhe8 {[%emt 0:09:10] And now ...d4 would win.} (17... Bxc5 $2 18. b3 Qg4+ 19. Qe2 Qxe2+ 20. Kxe2 $18 (20. Nxe2 a5 $14)) 18. Ne2 {[%emt 0:06:46] Inhibits d4.} Qxc2+ {[%emt 0:02:18]} 19. Rxc2 {[%emt 0:05:08]} Nxc5 {[%emt 0:00:28]} 20. Nd4 {[%emt 0:01:51]} Kd7 {[%emt 0:05:53]} 21. hxg5 {[%emt 0:03:16]} hxg5 {[%emt 0:00:07]} 22. Rh7 {[%emt 0:00:06]} Rf8 {[%emt 0:02:57]} 23. Be5 {[%emt 0:03:28]} Ne6 {[%emt 0:04:03] The position is equal.} 24. Rh6 {[%emt 0:02:21] Hoping for Nxe6.} Rc8 {[%emt 0:07:47]} 25. Nxe6 {[%emt 0:02:38]} Rxc2 {[%emt 0:02:27]} 26. Nxf8+ {[%emt 0:00:21]} Bxf8 $11 {[%emt 0:00:08][%mdl 4096] Endgame KRB-KRB} 27. Rf6 {[%emt 0:00:06]} Rc4 {[%emt 0:03:11]} 28. Bd4 {[%emt 0:02:00]} Ke7 $1 {[%emt 0:00:57][%cal Oc4d4] White must now prevent ...Rxd4+!} 29. Rf5 {[%emt 0:00:10]} f6 {[%emt 0:01:25]} 30. g4 {[%emt 0:01:53]} Rc6 {[%emt 0:01:27]} 31. Bxa7 {[%emt 0:02:12]} Ke6 {[%emt 0:00:39]} 32. Bd4 {[%emt 0:00:12]} Be7 {[%emt 0:00:05]} 33. Kd2 {[%emt 0:00:26]} Ra6 {[%emt 0:01:02]} 34. Kd3 {[%emt 0:00:45]} Ra1 {[%emt 0:00:34]} 35. f3 {[%emt 0:00:22]} Rd1+ {[%emt 0:00:19]} 36. Ke2 {[%emt 0:00:07]} Rh1 {[%emt 0:00:24]} 37. Kd3 {[%emt 0:00:27] An even fight not without its subleties.  Weighted Error Value: White=0.04 (flawless) /Black=0.01 (flawless)} 1/2-1/2

[Event "Croatian 1A League 2022"]
[Site "Porec"]
[Date "2022.10.01"]
[Round "8.8"]
[White "Postny, Evgeny"]
[Black "Erdos, Viktor"]
[Result "1/2-1/2"]
[ECO "E60"]
[WhiteElo "2573"]
[BlackElo "2597"]
[Annotator "TA"]
[PlyCount "38"]
[EventDate "2022.09.24"]
[EventType "team-tourn"]
[EventCountry "CRO"]
[SourceTitle "playchess.com"]
[Source "ChessBase"]
[SourceQuality "1"]
[TimeControl "40/5400+30:1800+30"]

{[%evp 9,38,47,47,56,57,39,43,37,31,34,47,38,39,15,34,17,102,87,65,31,29,31,37,18,0,0,23,26,16,9,14]} 1. d4 {[%emt 0:00:03]} Nf6 {[%emt 0:03:44]} 2. c4 {[%emt 0:00:07][%cal Bc2c4,Bc4d5][%mdl 32]} g6 {[%emt 0:00:04]} 3. h4 {[%emt 0:00:10]} d5 {[%emt 0:29:55]} 4. cxd5 {[%emt 0:00:28] [#]} Bg7 $146 {[%emt 0:00:11]} ({Predecessor:} 4... c5 5. e4 Nxe4 6. dxc5 Qa5+ 7. Nd2 Bg7 8. Qc2 Nxc5 9. Qc4 O-O 10. Ngf3 Nba6 {0-1 (92) Jacobson,B (2526)-Paravyan,D (2617) Chess.com INT 2022}) 5. h5 {[%emt 0:08:47]} Nxh5 {[%emt 0:01:25]} 6. e4 {[%emt 0:02:51] E60: King's Indian: Unusual lines and Fianchetto Variation without Nc3.} Nf6 {[%emt 0:00:03]} 7. Nc3 {[%emt 0:00:28]} c6 {[%emt 0:00:05]} 8. dxc6 {[%emt 0:01:49] White is slightly better.} Nxc6 {[%emt 0:00:06]} 9. d5 {[%emt 0:02:50]} Ne5 {[%emt 0:01:04]} 10. Be2 {[%emt 0:06:00]} Qa5 {[%emt 0:22:50] [#] Threatens to win with ...Nxe4.} 11. Kf1 {[%emt 0:08:16]} O-O {[%emt 0:04:20]} 12. Nh3 {[%emt 0:26:44]} e6 {[%emt 0:24:16]} (12... h5 $11) 13. Bf4 $16 {[%emt 0:03:00]} Ne8 {[%emt 0:02:31]} 14. Ng5 {[%emt 0:12:06]} h6 {[%emt 0:00:22]} 15. Nf3 {[%emt 0:00:06]} Nxf3 {[%emt 0:03:55]} 16. Bxf3 {[%emt 0:00:05]} g5 {[%emt 0:00:07]} 17. Be3 {[%emt 0:01:01][%cal Oe4e5]} Nf6 {[%emt 0:01:07]} 18. Bd4 {[%emt 0:04:46] aiming for Bxf6.} exd5 {[%emt 0:00:18]} 19. Nxd5 {[%emt 0:12:13]} Nxd5 {[%emt 0:00:11] Weighted Error Value: White=0.07 (flawless) /Black=0.11 (very precise)} 1/2-1/2